bitfinex/quotes_BTCUSD_20241028
["timestamp","ask_amount","ask_price","bid_price","bid_amount"]
[1730082797366,0.58240338,67834.0,67833.0,0.000822]
[1730082797566,0.59540338,67834.0,67833.0,0.000822]
[1730082797774,0.44289957,67834.0,67833.0,0.000822]
[1730082798392,0.44489957,67834.0,67833.0,0.000822]
[1730082799454,0.69489957,67834.0,67833.0,0.000822]
[1730082799882,0.69489957,67834.0,67833.0,1e-06]
[1730082799883,0.79209957,67834.0,67833.0,1e-06]
[1730082800081,0.78996497,67834.0,67833.0,1e-06]
[1730082800294,0.90291404,67834.0,67833.0,1e-06]
[1730082800492,0.91491404,67834.0,67833.0,1e-06]
[1730082800931,0.26541376,67826.0,67825.0,0.000822]
[1730082801138,0.51019559,67826.0,67825.0,0.000822]
[1730082801350,0.50819559,67826.0,67825.0,0.000822]
[1730082802713,0.52219559,67826.0,67825.0,0.000822]
[1730082803357,0.53619559,67826.0,67825.0,0.000822]
[1730082804295,0.64936349,67826.0,67825.0,0.000822]
[1730082804545,0.44391757,67826.0,67825.0,0.000822]
[1730082804764,0.53619559,67826.0,67825.0,0.000822]
[1730082807471,0.54703378,67826.0,67825.0,0.000822]
[1730082809318,0.63773378,67826.0,67825.0,0.000822]
[1730082809535,0.86873759,67826.0,67825.0,0.000822]
[1730082810433,0.77445957,67826.0,67825.0,1e-06]
[1730082810659,1.04202963,67826.0,67825.0,1e-06]
[1730082811103,1.00370958,67826.0,67825.0,1e-06]
[1730082811328,0.96101561,67826.0,67825.0,1e-06]
[1730082811552,0.4519758,67823.0,67822.0,1e-06]
[1730082811770,0.78247961,67823.0,67822.0,1e-06]
[1730082812923,0.79647961,67823.0,67822.0,1e-06]
[1730082814123,0.79647961,67823.0,67813.0,0.21984948]
[1730082814124,0.16543976,67814.0,67813.0,0.21984948]
[1730082814354,0.77689961,67814.0,67813.0,0.21984948]
[1730082814589,0.15545676,67806.0,67798.0,0.31644948]
[1730082814840,0.34773478,67806.0,67798.0,0.31644948]
[1730082815073,0.26545876,67805.0,67798.0,0.31644948]
[1730082816700,0.27945876,67805.0,67798.0,0.31644948]
[1730082817149,0.15547176,67799.0,67798.0,0.31392548]
[1730082817374,0.24774978,67799.0,67798.0,0.31392548]
[1730082817611,0.24774978,67799.0,67798.0,0.0966]
[1730082818463,0.25874978,67799.0,67798.0,0.0966]
[1730082819376,0.26874978,67799.0,67798.0,0.0966]
[1730082820097,0.25017176,67799.0,67798.0,0.0966]
[1730082824771,0.25017176,67799.0,67798.0,0.097423]
[1730082831409,0.25017176,67799.0,67798.0,0.000823]
[1730082834619,0.23917176,67799.0,67798.0,0.000823]
[1730082834829,0.22917176,67799.0,67798.0,0.000823]
[1730082835293,0.24817176,67799.0,67798.0,0.000823]
[1730082835679,0.23917176,67799.0,67798.0,0.000823]
[1730082835895,0.24817176,67799.0,67798.0,0.000823]
[1730082837415,0.23817176,67799.0,67798.0,0.000823]
[1730082837850,0.25017176,67799.0,67798.0,0.000823]
[1730082838282,0.25181776,67799.0,67798.0,0.000823]
[1730082838501,0.24281776,67799.0,67798.0,0.000823]
[1730082838727,0.25281776,67799.0,67798.0,0.000823]
[1730082840470,0.37027597,67799.0,67798.0,0.000823]
[1730082840696,0.25281776,67799.0,67798.0,0.000823]
[1730082844395,0.35501776,67799.0,67798.0,0.000823]
[1730082844892,0.53401776,67799.0,67798.0,0.000823]
[1730082845339,0.68452157,67799.0,67798.0,0.000823]
[1730082845571,0.83702538,67799.0,67798.0,0.000823]
[1730082846203,0.83502538,67799.0,67798.0,0.000823]
[1730082847302,0.99349752,67799.0,67798.0,0.000823]
[1730082847525,0.83702538,67799.0,67798.0,0.000823]
[1730082847753,0.92528421,67799.0,67798.0,0.000823]
[1730082847988,0.92528421,67799.0,67798.0,1e-06]
[1730082847989,0.9293034,67799.0,67798.0,1e-06]
[1730082848240,0.43868976,67791.0,67790.0,0.21984948]
[1730082848468,0.01997776,67790.0,67789.0,0.000834]
[1730082848721,0.01997776,67790.0,67781.0,0.21984948]
[1730082848722,0.43670876,67782.0,67781.0,0.21984948]
[1730082848961,0.68149059,67782.0,67781.0,0.21984948]
[1730082849167,0.26751776,67778.0,67777.0,0.000834]
[1730082849398,0.35979578,67778.0,67777.0,0.000834]
[1730082850271,0.51029959,67778.0,67777.0,0.000834]
[1730082850753,0.59199959,67778.0,67777.0,0.000834]
[1730082851173,0.60399959,67778.0,67777.0,0.000834]
[1730082851837,0.61799959,67778.0,67777.0,0.000834]
[1730082852094,0.28351776,67778.0,67777.0,0.000834]
[1730082853904,0.26951776,67778.0,67777.0,0.000834]
[1730082854346,0.28351776,67778.0,67777.0,0.000834]
[1730082854753,0.26951776,67778.0,67777.0,0.000834]
[1730082855164,0.28251776,67778.0,67777.0,0.000834]
[1730082855380,0.17751776,67778.0,67777.0,0.000834]
[1730082855813,0.16451776,67778.0,67777.0,0.000834]
[1730082856433,0.17551776,67778.0,67777.0,0.000834]
[1730082857513,0.16151776,67778.0,67777.0,0.000834]
[1730082858181,0.15851776,67778.0,67777.0,0.000834]
[1730082858703,0.16651776,67778.0,67777.0,0.000834]
[1730082860974,0.15051776,67778.0,67777.0,0.000834]
[1730082861235,0.15651776,67778.0,67777.0,0.000834]
[1730082861456,0.16251776,67778.0,67777.0,0.000834]
[1730082861914,0.15651776,67778.0,67777.0,0.000834]
[1730082862144,0.16251776,67778.0,67777.0,0.000834]
[1730082867810,0.1854642,67778.0,67777.0,0.000834]
[1730082868248,0.16251776,67778.0,67777.0,0.000834]
[1730082873105,0.25691776,67778.0,67777.0,0.000834]
[1730082874236,0.34901776,67778.0,67777.0,0.000834]
[1730082874442,0.49952157,67778.0,67777.0,0.000834]
[1730082875106,0.60152157,67778.0,67777.0,0.000834]
[1730082875579,0.74602538,67778.0,67777.0,0.000834]
[1730082876025,0.75202538,67778.0,67777.0,0.000834]
[1730082876465,0.79609527,67778.0,67777.0,0.000834]
[1730082876677,0.79009527,67778.0,67777.0,0.000834]
[1730082876883,0.74602538,67778.0,67777.0,0.000834]
[1730082877101,0.76002538,67778.0,67777.0,0.000834]
[1730082877317,0.74602538,67778.0,67777.0,0.000834]
[1730082877794,0.76002538,67778.0,67777.0,0.000834]
[1730082878021,0.75402538,67778.0,67777.0,0.000834]
[1730082878226,0.77929325,67778.0,67777.0,0.000834]
[1730082878457,0.86738475,67778.0,67777.0,0.000834]
[1730082878678,0.61278944,67778.0,67777.0,0.000834]
[1730082879372,0.71488094,67778.0,67777.0,0.000834]
[1730082879594,0.62878944,67778.0,67777.0,0.000834]
[1730082880455,0.62678944,67778.0,67777.0,0.000834]
[1730082880666,0.62878944,67778.0,67777.0,0.000834]
[1730082882232,0.71687906,67778.0,67777.0,0.000834]
[1730082882650,0.71487906,67778.0,67777.0,0.000834]
[1730082882882,0.62678944,67778.0,67777.0,0.000834]
[1730082883312,0.71687906,67778.0,67777.0,0.000834]
[1730082884646,0.86738287,67778.0,67777.0,0.000834]
[1730082885260,0.77929325,67778.0,67777.0,0.000834]
[1730082885752,0.71492207,67778.0,67777.0,0.000834]
[1730082885972,0.62678944,67778.0,67777.0,0.000834]
[1730082886197,0.69489267,67778.0,67777.0,0.000834]
[1730082886631,0.62878944,67778.0,67777.0,0.000834]
[1730082886862,0.69489184,67778.0,67777.0,0.000834]
[1730082887095,0.62678944,67778.0,67777.0,0.000834]
[1730082887319,0.69289184,67778.0,67777.0,0.000834]
[1730082887533,0.67085907,67778.0,67777.0,0.000834]
[1730082887963,0.69289184,67778.0,67777.0,0.000834]
[1730082888202,0.65959812,67778.0,67777.0,0.000834]
[1730082888454,0.61552157,67778.0,67777.0,0.000834]
[1730082888677,0.60143073,67778.0,67777.0,0.000834]
[1730082888892,0.38585418,67778.0,67777.0,0.000834]
[1730082889098,0.17851776,67778.0,67777.0,0.000834]
[1730082889565,0.16951776,67778.0,67777.0,0.000834]
[1730082890691,0.15551776,67778.0,67777.0,0.000834]
[1730082890922,0.18051776,67778.0,67777.0,0.000834]
[1730082891356,0.16651776,67778.0,67777.0,0.000834]
[1730082891786,0.17051776,67778.0,67777.0,0.100034]
[1730082893350,0.17051776,67778.0,67777.0,0.178434]
[1730082893351,0.02297776,67778.0,67777.0,0.178434]
[1730082893569,0.02297776,67778.0,67777.0,0.325976]
[1730082894233,0.00297776,67778.0,67777.0,0.178434]
[1730082894439,0.00497776,67778.0,67777.0,0.178434]
[1730082894647,0.00697776,67778.0,67777.0,0.178434]
[1730082894846,0.15451776,67778.0,67777.0,0.178434]
[1730082896738,0.15451776,67778.0,67777.0,0.100034]
[1730082897007,0.15451776,67778.0,67777.0,0.000834]
[1730082899685,0.00697776,67778.0,67777.0,0.000834]
[1730082899907,0.00697776,67778.0,67777.0,0.15132651]
[1730082900158,0.00697776,67778.0,67777.0,0.24832651]
[1730082900394,0.00697776,67778.0,67777.0,0.097834]
[1730082901294,0.15451776,67778.0,67777.0,0.097834]
[1730082902585,0.15451776,67778.0,67777.0,0.000834]
[1730082902804,0.15251776,67778.0,67777.0,0.000834]
[1730082903032,0.15051776,67778.0,67777.0,0.000834]
[1730082903865,0.15251776,67778.0,67777.0,0.000834]
[1730082904070,0.15051776,67778.0,67777.0,0.000834]
[1730082904281,0.15251776,67778.0,67777.0,0.000834]
[1730082904510,0.15351776,67778.0,67777.0,0.000834]
[1730082904990,0.15251776,67778.0,67777.0,0.000834]
[1730082906069,0.15051776,67778.0,67777.0,0.000834]
[1730082906282,0.15351776,67778.0,67777.0,0.000834]
[1730082906523,0.15651776,67778.0,67777.0,0.000834]
[1730082906735,0.15351776,67778.0,67777.0,0.000834]
[1730082906960,0.15051776,67778.0,67777.0,0.002834]
[1730082907170,0.15051776,67778.0,67777.0,0.000834]
[1730082907395,0.15051776,67778.0,67777.0,0.001834]
[1730082907831,0.15051776,67778.0,67777.0,0.000834]
[1730082913866,0.15051776,67778.0,67777.0,0.004834]
[1730082914080,0.15051776,67778.0,67777.0,0.002834]
[1730082914307,0.15151776,67778.0,67777.0,0.000834]
[1730082914530,0.00397776,67778.0,67777.0,0.000834]
[1730082915629,0.00497776,67778.0,67777.0,0.000834]
[1730082916096,0.15251776,67778.0,67777.0,0.000834]
[1730082916315,0.00397776,67778.0,67777.0,0.000834]
[1730082916526,0.00297776,67778.0,67777.0,0.002834]
[1730082916965,0.00297776,67778.0,67777.0,0.004834]
[1730082919001,0.15051776,67778.0,67777.0,0.004834]
[1730082919889,0.00297776,67778.0,67777.0,0.004834]
[1730082920974,0.15051776,67778.0,67777.0,0.004834]
[1730082921211,0.00297776,67780.0,67777.0,0.28634869]
[1730082921412,0.001646,67789.0,67780.0,0.147536]
[1730082921413,0.00297776,67781.0,67780.0,0.147536]
[1730082921667,0.147538,67779.0,67778.0,0.15050381]
[1730082921884,0.147538,67779.0,67777.0,0.004834]
[1730082921885,0.15051776,67778.0,67777.0,0.004834]
[1730082922101,0.15551776,67778.0,67777.0,0.002834]
[1730082922358,0.23151776,67778.0,67777.0,0.002834]
[1730082922593,0.23151776,67778.0,67777.0,0.004834]
[1730082922818,0.49202157,67778.0,67777.0,0.004834]
[1730082923032,0.49202157,67778.0,67777.0,0.000834]
[1730082923251,0.49402157,67778.0,67777.0,0.001834]
[1730082923467,0.58492157,67778.0,67777.0,0.003834]
[1730082923687,0.65101767,67778.0,67777.0,0.003834]
[1730082923965,0.65101767,67778.0,67777.0,0.002834]
[1730082923966,0.66199404,67778.0,67777.0,0.002834]
[1730082924181,0.66000327,67778.0,67777.0,0.002834]
[1730082924598,0.59392157,67778.0,67777.0,0.002834]
[1730082924802,0.66000412,67778.0,67777.0,0.002834]
[1730082925007,0.59392157,67778.0,67777.0,0.002834]
[1730082925429,0.74642538,67778.0,67777.0,0.002834]
[1730082926538,0.83453949,67778.0,67777.0,0.002834]
[1730082926770,0.59392157,67778.0,67777.0,0.002834]
[1730082926980,0.66001356,67778.0,67777.0,0.002834]
[1730082927523,0.66002927,67778.0,67777.0,0.002834]
[1730082927726,0.59392157,67778.0,67777.0,0.002834]
[1730082928357,0.65102927,67778.0,67777.0,0.000834]
[1730082928950,0.80153308,67778.0,67777.0,0.000834]
[1730082929716,0.65102927,67778.0,67777.0,0.000834]
[1730082930117,0.58492157,67778.0,67777.0,0.000834]
[1730082930367,0.65104019,67778.0,67777.0,0.000834]
[1730082930783,0.58492157,67778.0,67777.0,0.000834]
[1730082931195,0.62692157,67778.0,67777.0,0.000834]
[1730082931661,0.64092157,67778.0,67777.0,0.000834]
[1730082932101,0.72909043,67778.0,67777.0,0.000834]
[1730082932771,0.64092157,67778.0,67777.0,0.000834]
[1730082933208,0.72909043,67778.0,67777.0,0.000834]
[1730082933901,0.64092157,67778.0,67777.0,0.000834]
[1730082934166,0.72909043,67778.0,67777.0,0.000834]
[1730082934376,0.64092157,67778.0,67777.0,0.000834]
[1730082934822,0.55154135,67778.0,67777.0,0.000834]
[1730082935048,0.38751776,67778.0,67777.0,0.000834]
[1730082935256,0.35951776,67778.0,67777.0,0.000834]
[1730082935490,0.34551776,67778.0,67777.0,0.000834]
[1730082935911,0.35951776,67778.0,67777.0,0.000834]
[1730082936116,0.33151776,67778.0,67777.0,0.000834]
[1730082936540,0.34551776,67778.0,67777.0,0.000834]
[1730082937602,0.35951776,67778.0,67777.0,0.000834]
[1730082940344,0.35451776,67778.0,67777.0,0.000834]
[1730082940543,0.35951776,67778.0,67777.0,0.000834]
[1730082941015,0.27851776,67778.0,67777.0,0.000834]
[1730082941233,0.17851776,67778.0,67777.0,0.000834]
[1730082948660,0.27085146,67778.0,67777.0,0.000834]
[1730082949093,0.25685146,67778.0,67777.0,0.000834]
[1730082949532,0.01697776,67778.0,67777.0,0.2407097]
[1730082949545,0.025,67778.0,67777.0,0.39121351]
[1730082949978,0.025,67778.0,67777.0,0.15133781]
[1730082950205,0.011,67778.0,67777.0,0.15133781]
[1730082950451,0.023,67778.0,67777.0,0.15133781]
[1730082950936,0.011,67778.0,67777.0,0.15133781]
[1730082951165,0.013,67778.0,67777.0,0.15133781]
[1730082951379,0.14954,67778.0,67777.0,0.000834]
[1730082951594,0.15251776,67778.0,67777.0,0.000834]
[1730082951816,0.16651776,67778.0,67777.0,0.000834]
[1730082952236,0.15251776,67778.0,67777.0,0.000834]
[1730082952654,0.15351776,67778.0,67777.0,0.000834]
[1730082957372,0.00597776,67778.0,67777.0,0.000834]
[1730082957605,0.003,67778.0,67777.0,0.43286011]
[1730082958332,0.002,67778.0,67777.0,0.43286011]
[1730082958535,0.00297776,67784.0,67777.0,0.28531811]
[1730082958742,0.295039,67788.0,67779.0,0.295076]
[1730082958743,0.00297776,67788.0,67779.0,0.295076]
[1730082958950,0.00297776,67787.0,67785.0,0.147523]
[1730082959603,0.00297776,67787.0,67784.0,0.295053]
[1730082959809,0.00297776,67787.0,67785.0,0.00295015]
[1730082960025,0.00462376,67789.0,67784.0,0.0902]
[1730082960234,0.001646,67789.0,67788.0,0.147518]
[1730082960442,0.00462376,67789.0,67788.0,0.00295]
[1730082960649,0.00462376,67789.0,67788.0,0.147518]
[1730082960858,0.00462376,67789.0,67787.0,0.22322]
[1730082961070,0.00297776,67788.0,67785.0,0.15050381]
[1730082961295,0.00297776,67788.0,67785.0,0.29802881]
[1730082961535,0.00297776,67788.0,67785.0,0.15050381]
[1730082961758,0.147534,67781.0,67779.0,0.002]
[1730082961977,0.147533,67781.0,67779.0,0.15250381]
[1730082962230,0.15050976,67782.0,67779.0,0.15050381]
[1730082962413,0.147534,67781.0,67779.0,0.15050381]
[1730082963113,0.15050976,67782.0,67779.0,0.15050381]
[1730082963539,0.15050976,67782.0,67779.0,0.15250381]
[1730082964007,0.00297776,67782.0,67779.0,0.002]
[1730082964234,0.00297776,67782.0,67780.0,0.21984948]
[1730082964446,0.29668,67789.0,67785.0,0.002]
[1730082964447,0.00297776,67787.0,67785.0,0.002]
[1730082964726,0.00297776,67786.0,67785.0,0.002]
[1730082965135,0.00297776,67786.0,67784.0,0.147526]
[1730082965344,0.00297776,67785.0,67784.0,0.147526]
[1730082966633,0.00297776,67785.0,67784.0,0.149526]
[1730082966857,0.00462376,67789.0,67785.0,0.147525]
[1730082967074,0.00462376,67789.0,67788.0,0.147518]
[1730082967287,0.001646,67789.0,67788.0,0.147518]
[1730082967552,0.00462376,67789.0,67788.0,0.147518]
[1730082967757,0.001646,67789.0,67788.0,0.147518]
[1730082968397,0.001646,67789.0,67788.0,0.43495215]
[1730082968398,0.004646,67789.0,67788.0,0.43495215]
[1730082968622,0.004646,67789.0,67788.0,0.43200211]
[1730082968831,0.004646,67789.0,67788.0,0.29802181]
[1730082969746,0.001646,67789.0,67788.0,0.29802181]
[1730082969953,0.001646,67789.0,67788.0,0.30002181]
[1730082970576,0.003646,67789.0,67788.0,0.30002181]
[1730082971039,0.001646,67789.0,67788.0,0.30002181]
[1730082971458,0.001646,67789.0,67788.0,0.30202181]
[1730082971662,0.001646,67789.0,67788.0,0.43600211]
[1730082974103,0.001646,67789.0,67788.0,0.62092435]
[1730082975004,0.001646,67789.0,67788.0,0.61892435]
[1730082975245,0.001646,67789.0,67788.0,0.61692435]
[1730082975681,0.001646,67789.0,67788.0,0.61892435]
[1730082975886,0.001646,67789.0,67788.0,0.61692435]
[1730082976319,0.001646,67789.0,67788.0,0.61892435]
[1730082976537,0.001646,67789.0,67788.0,0.62092435]
[1730082976966,0.001646,67789.0,67788.0,0.61892435]
[1730082977413,0.001646,67789.0,67788.0,0.62092435]
[1730082980476,0.001646,67789.0,67788.0,0.72092435]
[1730082980708,0.075346,67799.0,67798.0,0.152496]
[1730082980921,0.075346,67799.0,67798.0,0.71078011]
[1730082982471,0.075346,67799.0,67798.0,0.71278011]
[1730082982932,0.075346,67799.0,67798.0,0.71478011]
[1730082990065,0.075346,67799.0,67798.0,0.85778265]
[1730082990294,0.075346,67799.0,67798.0,0.85578265]
[1730082990510,0.075346,67799.0,67798.0,0.72180235]
[1730082992021,0.075346,67799.0,67798.0,0.64110235]
[1730082992463,0.075346,67799.0,67798.0,0.40902205]
[1730082992694,0.075346,67799.0,67798.0,0.40699981]
[1730082995512,0.075346,67799.0,67798.0,0.54098011]
[1730082996380,0.08914045,67799.0,67798.0,0.54098011]
[1730082996630,0.08914045,67799.0,67798.0,0.53898011]
[1730082996854,0.08914045,67799.0,67798.0,0.53698011]
[1730082997269,0.08914045,67799.0,67798.0,0.53798011]
[1730082997709,0.08914045,67799.0,67798.0,0.29899981]
[1730082997930,0.11121196,67799.0,67798.0,0.29899981]
[1730082998143,0.11121196,67799.0,67798.0,0.30599981]
[1730082998579,0.11121196,67799.0,67798.0,0.30499981]
[1730082998788,0.11121196,67799.0,67798.0,0.30299981]
[1730082999001,0.11121196,67799.0,67798.0,0.30499981]
[1730082999439,0.11121196,67799.0,67798.0,0.29999981]
[1730082999674,0.11121196,67799.0,67798.0,0.30499981]
[1730083000337,0.11123268,67799.0,67798.0,0.30499981]
[1730083000631,0.11123268,67799.0,67798.0,0.30599981]
[1730083000632,0.08914045,67799.0,67798.0,0.30599981]
[1730083000844,0.08914045,67799.0,67798.0,0.30499981]
[1730083001053,0.11123248,67799.0,67798.0,0.30599981]
[1730083001477,0.08914045,67799.0,67798.0,0.30599981]
[1730083002334,0.11124432,67799.0,67798.0,0.30599981]
[1730083002997,0.075346,67799.0,67798.0,0.30599981]
[1730083003222,0.11126617,67799.0,67798.0,0.30599981]
[1730083003430,0.18906617,67799.0,67798.0,0.30599981]
[1730083004306,0.18906617,67799.0,67798.0,0.29899981]
[1730083004510,0.18906617,67799.0,67798.0,0.30599981]
[1730083004926,0.18906617,67799.0,67798.0,0.30499981]
[1730083005150,0.18906617,67799.0,67798.0,0.29999981]
[1730083005357,0.18906617,67799.0,67798.0,0.30599981]
[1730083005995,0.18906617,67799.0,67798.0,0.30399981]
[1730083006198,0.18906617,67799.0,67798.0,0.30599981]
[1730083006626,0.153146,67799.0,67798.0,0.30599981]
[1730083006870,0.16696776,67799.0,67798.0,0.30599981]
[1730083007319,0.16696776,67799.0,67798.0,0.30499981]
[1730083007529,0.16696776,67799.0,67798.0,0.30299981]
[1730083007772,0.16696776,67799.0,67798.0,0.30399981]
[1730083008216,0.16696776,67799.0,67798.0,0.30499981]
[1730083008440,0.16696776,67799.0,67798.0,0.30399981]
[1730083008644,0.16696776,67799.0,67798.0,0.30599981]
[1730083008850,0.08916776,67799.0,67798.0,0.30599981]
[1730083010848,0.08917308,67799.0,67798.0,0.30599981]
[1730083014221,0.075346,67799.0,67798.0,0.30599981]
[1730083014435,0.08917298,67799.0,67798.0,0.30599981]
[1730083017851,0.25787298,67799.0,67798.0,0.30599981]
[1730083018203,0.2578739,67799.0,67798.0,0.30599981]
[1730083018386,0.0891739,67799.0,67798.0,0.30599981]
[1730083018996,0.0891739,67799.0,67798.0,0.30060892]
[1730083019219,0.0891739,67799.0,67798.0,0.29773424]
[1730083020524,0.08917621,67799.0,67798.0,0.29773424]
[1730083021112,0.075346,67799.0,67798.0,0.29773424]
[1730083021366,0.08917628,67799.0,67798.0,0.29773424]
[1730083022403,0.08917628,67799.0,67798.0,0.30068386]
[1730083023526,0.08917628,67799.0,67798.0,0.34688003]
[1730083023527,0.075346,67799.0,67798.0,0.34688003]
[1730083023741,0.075346,67799.0,67798.0,0.30473424]
[1730083023742,0.08917891,67799.0,67798.0,0.30473424]
[1730083023949,0.08917891,67799.0,67798.0,0.53413623]
[1730083024141,0.08917873,67799.0,67798.0,0.53413623]
[1730083024385,0.075346,67799.0,67798.0,0.63415847]
[1730083024589,0.075346,67799.0,67798.0,0.56786421]
[1730083025032,0.075346,67799.0,67798.0,0.56986421]
[1730083025447,0.075346,67799.0,67798.0,0.56886421]
[1730083025657,0.075346,67799.0,67798.0,0.56686421]
[1730083025913,0.075346,67799.0,67798.0,0.56786421]
[1730083026146,0.075346,67799.0,67798.0,0.65625656]
[1730083026361,0.075346,67799.0,67798.0,0.88583686]
[1730083026562,0.075346,67799.0,67798.0,0.75185656]
[1730083027119,0.075346,67799.0,67798.0,0.75385656]
[1730083027299,0.075346,67799.0,67798.0,0.75185656]
[1730083027513,0.075346,67799.0,67798.0,0.75385656]
[1730083027722,0.075346,67799.0,67798.0,0.75185656]
[1730083028366,0.075346,67799.0,67798.0,0.66346421]
[1730083028791,0.075346,67799.0,67798.0,0.75384109]
[1730083028998,0.075346,67799.0,67798.0,0.66546421]
[1730083029627,0.075346,67799.0,67798.0,0.66346421]
[1730083030859,0.075346,67799.0,67798.0,0.66346474]
[1730083031875,0.075346,67799.0,67798.0,0.66546474]
[1730083032520,0.075346,67799.0,67798.0,0.75183255]
[1730083033716,0.075346,67799.0,67798.0,0.75383255]
[1730083034678,0.075346,67799.0,67798.0,0.93821623]
[1730083034874,0.075346,67799.0,67798.0,0.93621623]
[1730083035071,0.075346,67799.0,67798.0,0.93821623]
[1730083036051,0.075346,67799.0,67798.0,0.93621623]
[1730083037151,0.075346,67799.0,67798.0,0.93703823]
[1730083037609,0.075346,67799.0,67798.0,0.84867042]
[1730083038196,0.075346,67799.0,67798.0,0.85067042]
[1730083038639,0.075346,67799.0,67798.0,0.96109486]
[1730083039045,0.075346,67799.0,67798.0,0.87367042]
[1730083039221,0.1738,67820.0,67815.0,1.03222]
[1730083039427,0.1738,67820.0,67819.0,0.147451]
[1730083039625,0.001646,67825.0,67819.0,0.147451]
[1730083039626,0.0807,67824.0,67819.0,0.24269565]
[1730083039997,0.0807,67824.0,67823.0,0.147442]
[1730083040210,0.0807,67824.0,67823.0,0.29794581]
[1730083041709,0.0847,67824.0,67823.0,0.29794581]
[1730083043271,0.0887,67824.0,67823.0,0.29794581]
[1730083046527,0.0887,67824.0,67823.0,0.15050381]
[1730083047390,0.0887,67824.0,67814.0,0.29694524]
[1730083047391,0.294885,67823.0,67816.0,0.005]
[1730083047601,0.0887,67824.0,67813.0,0.294925]
[1730083047602,0.0798,67821.0,67817.0,0.21984948]
[1730083047811,0.1742,67818.0,67817.0,0.21984948]
[1730083048013,0.1742,67818.0,67814.0,0.005]
[1730083048224,0.1742,67818.0,67815.0,0.15050381]
[1730083048445,0.147458,67816.0,67811.0,0.005]
[1730083048717,0.147458,67816.0,67811.0,0.15550381]
[1730083048718,0.147461,67815.0,67811.0,0.15550381]
[1730083048897,0.147466,67812.0,67808.0,0.005]
[1730083049151,0.0798,67813.0,67809.0,0.37035329]
[1730083049360,0.0798,67813.0,67809.0,0.15050381]
[1730083050023,0.0798,67813.0,67812.0,0.005]
[1730083050864,0.0798,67813.0,67812.0,0.152466]
[1730083051082,0.0798,67813.0,67812.0,0.005]
[1730083051350,0.0798,67813.0,67812.0,0.006]
[1730083051784,0.0808,67813.0,67812.0,0.006]
[1730083052645,0.0808,67813.0,67812.0,0.152466]
[1730083052832,0.0818,67813.0,67812.0,0.152466]
[1730083053917,0.0798,67813.0,67812.0,0.152466]
[1730083054309,0.0798,67813.0,67812.0,0.154466]
[1730083054654,0.0798,67813.0,67812.0,0.153466]
[1730083055501,0.0798,67813.0,67812.0,0.152466]
[1730083055666,0.0798,67813.0,67812.0,0.147466]
[1730083055871,0.0798,67813.0,67803.0,0.294969]
[1730083056079,0.082,67808.0,67803.0,0.15050381]
[1730083056474,0.225683,67805.0,67799.0,0.005]
[1730083056615,0.225683,67805.0,67800.0,0.15050381]
[1730083056818,0.0782,67805.0,67800.0,0.15050381]
[1730083057188,0.09,67804.0,67799.0,0.005]
[1730083057301,0.147486,67803.0,67799.0,0.15050381]
[1730083057757,0.237484,67804.0,67799.0,0.15050381]
[1730083057952,0.237484,67804.0,67798.0,0.000822]
[1730083057953,0.0782,67803.0,67798.0,0.000822]
[1730083058061,0.38497,67804.0,67798.0,0.000822]
[1730083058062,0.294978,67802.0,67798.0,0.000822]
[1730083058262,0.0782,67801.0,67798.0,0.000822]
[1730083060035,0.0782,67801.0,67798.0,0.001822]
[1730083060466,0.0782,67801.0,67798.0,0.000822]
[1730083061288,0.0812,67801.0,67798.0,0.000822]
[1730083061949,0.0842,67801.0,67798.0,0.000822]
[1730083062630,0.0782,67801.0,67798.0,0.000822]
[1730083062776,0.0782,67801.0,67798.0,0.001822]
[1730083062986,0.0782,67801.0,67798.0,0.002822]
[1730083063415,0.0782,67801.0,67798.0,0.001822]
[1730083064077,0.0782,67801.0,67798.0,0.002822]
[1730083064284,0.0782,67801.0,67798.0,0.001822]
[1730083064495,0.0782,67801.0,67798.0,0.002822]
[1730083067033,0.386613,67804.0,67803.0,0.005]
[1730083067034,0.001644,67804.0,67803.0,0.005]
[1730083067248,0.001644,67804.0,67803.0,0.30593921]
[1730083067464,0.001644,67804.0,67803.0,0.30298981]
[1730083068146,0.001644,67804.0,67803.0,0.15550381]
[1730083068562,0.001644,67804.0,67803.0,0.15650381]
[1730083068787,0.005644,67804.0,67803.0,0.15650381]
[1730083069259,0.001644,67804.0,67803.0,0.15650381]
[1730083069671,0.001644,67804.0,67803.0,0.15850381]
[1730083069875,0.001644,67804.0,67803.0,0.30598981]
[1730083070084,0.001644,67804.0,67803.0,0.30398981]
[1730083070311,0.001644,67804.0,67803.0,0.30298981]
[1730083073184,0.001644,67804.0,67803.0,0.30593918]
[1730083073392,0.001644,67804.0,67803.0,0.30793918]
[1730083073947,0.001644,67804.0,67803.0,0.30593918]
[1730083074151,0.001644,67804.0,67803.0,0.30398981]
[1730083074365,0.001644,67804.0,67803.0,0.30298981]
[1730083074780,0.001644,67804.0,67803.0,0.30398981]
[1730083075491,0.001644,67804.0,67803.0,0.30598981]
[1730083076060,0.001644,67804.0,67803.0,0.30398981]
[1730083076403,0.001644,67804.0,67803.0,0.30498981]
[1730083076836,0.001644,67804.0,67803.0,0.30398981]
[1730083077211,0.001644,67804.0,67803.0,0.30598981]
[1730083077805,0.001644,67804.0,67803.0,0.30498981]
[1730083078433,0.001644,67804.0,67802.0,0.005]
[1730083078637,0.001644,67804.0,67803.0,0.001]
[1730083079046,0.001644,67804.0,67803.0,0.003]
[1730083079848,0.001644,67804.0,67803.0,0.002]
[1730083080003,0.001644,67804.0,67802.0,0.15550381]
[1730083080210,0.001644,67804.0,67803.0,0.001]
[1730083080408,0.001644,67804.0,67802.0,0.30499081]
[1730083080823,0.001644,67804.0,67803.0,0.001]
[1730083082542,0.001644,67804.0,67803.0,0.002]
[1730083089290,0.001644,67804.0,67803.0,0.02395368]
[1730083092999,0.42195563,67804.0,67803.0,0.02395368]
[1730083093260,0.42493339,67804.0,67803.0,0.02395368]
[1730083093499,0.42493339,67804.0,67803.0,0.02295368]
[1730083093727,0.42493339,67804.0,67803.0,0.02195368]
[1730083094156,0.42593339,67804.0,67803.0,0.02195368]
[1730083094371,0.32196776,67801.0,67799.0,0.000822]
[1730083094590,0.227892,67800.0,67799.0,0.000822]
[1730083094808,0.227892,67800.0,67799.0,0.0229134]